[Event "HUN-ch U8-U18 2019"]
[Site "Balatonlelle"]
[Date "2019.06.27"]
[Round "8.14"]
[White "Udvardi, Zalan"]
[Black "Papp, Levente"]
[Result "0-1"]
[ECO "C15"]
[WhiteElo "2211"]
[BlackElo "2350"]
[Annotator "RC"]
[PlyCount "82"]
[EventDate "2019.06.21"]
[EventType "swiss"]
[EventCountry "HUN"]
[SourceTitle "playchess.com"]
[Source "ChessBase"]
[SourceQuality "1"]
[TimeControl "40/5400+30:1800+30"]

1. e4 {[%emt 0:00:01]} e6 {[%emt 0:00:05]} 2. d4 {[%emt 0:00:04]} d5 {[%emt 0:00:05]} 3. Nc3 {[%emt 0:00:11]} Bb4 {[%emt 0:00:07]} 4. Nge2 {[%emt 0:00:17]} Nc6 {[%emt 0:00:27]} 5. a3 {[%emt 0:07:44]} Ba5 {[%emt 0:03:53]} 6. b4 {[%emt 0:16:04]} Bb6 {[%emt 0:00:05]} 7. Na4 {[%emt 0:00:41]} Qh4 {[%emt 0:10:11]} 8. Be3 {[%emt 0:22:07]} Nf6 {[%emt 0:09:57]} 9. e5 {[%emt 0:03:51]} Ng4 {[%emt 0:00:35]} 10. g3 {[%emt 0:00:28]} Nxe3 {[%emt 0:02:15]} 11. gxh4 {[%emt 0:04:49]} Nxd1 {[%emt 0:00:06]} 12. Rxd1 {[%emt 0:00:12]} Bd7 {[%emt 0:00:37]} 13. f4 {[%emt 0:04:23]} Nxb4 {[%emt 0:04:06]} 14. Nxb6 {[%emt 0:03:29]} Nxc2+ {[%emt 0:00:15]} 15. Kd2 {[%emt 0:00:23]} axb6 {[%emt 0:00:04]} 16. Kxc2 {[%emt 0:02:40]} Ba4+ {[%emt 0:00:42]} 17. Kc1 {[%emt 0:00:23]} Bxd1 {[%emt 0:00:04]} 18. Kxd1 {[%emt 0:00:06]} Rxa3 {[%emt 0:00:04]} 19. Kd2 {[%emt 0:01:30]} b5 {[%emt 0:02:46]} 20. Nc1 {[%emt 0:00:26]} b4 {[%emt 0:01:30]} 21. Nd3 {[%emt 0:03:39]} Ra2+ {[%emt 0:03:06]} 22. Ke3 {[%emt 0:00:05]} Ke7 {[%emt 0:12:34]} 23. Be2 {[%emt 0:02:44]} Rha8 {[%emt 0:00:26]} 24. Nxb4 {[%emt 0:04:31]} R8a3+ {[%emt 0:00:24]} 25. Nd3 {[%emt 0:00:37]} Rc3 {[%emt 0:04:20]} 26. Rb1 {[%emt 0:02:55]} b6 {[%emt 0:00:10]} 27. h3 {[%emt 0:02:21]} c5 {[%emt 0:02:29]} 28. dxc5 {[%emt 0:03:41]} bxc5 {[%emt 0:00:13]} 29. Rb7+ {[%emt 0:00:13]} Ke8 {[%emt 0:01:18]} 30. Bf1 {[%emt 0:01:13]} Rca3 {[%emt 0:00:09]} 31. Rb8+ {[%emt 0:02:18]} Kd7 {[%emt 0:00:05]} 32. Rb7+ {[%emt 0:00:21]} Kc6 {[%emt 0:00:05]} 33. Rxf7 {[%emt 0:00:05]} c4 {[%emt 0:00:05]} 34. Re7 {[%emt 0:00:09]} cxd3 {[%emt 0:00:20]} 35. Rxe6+ {[%emt 0:00:40]} Kc5 {[%emt 0:00:04]} 36. Bxd3 {[%emt 0:00:09]} Rh2 {[%emt 0:00:06]} 37. f5 {[%emt 0:01:49]} Rxh3+ {[%emt 0:00:07]} 38. Kf4 {[%emt 0:00:03]} Raxd3 {[%emt 0:01:47]} 39. Re8 {[%emt 0:02:22]} Rdf3+ {[%emt 0:00:07]} 40. Kg4 {[%emt 0:00:00]} Rhg3+ {[%emt 0:00:00]} 41. Kh5 {[%emt 0:00:26]} Rxf5# {[%emt 0:00:09]} 0-1

[Event "HUN-ch U8-U18 2019"]
[Site "Balatonlelle"]
[Date "2019.06.26"]
[Round "8.14"]
[White "Kresz, Tamas"]
[Black "Kovacs, Patrik Zsolt"]
[Result "1/2-1/2"]
[ECO "B13"]
[WhiteElo "1766"]
[BlackElo "1903"]
[Annotator "NA RC"]
[PlyCount "52"]
[EventDate "2019.06.21"]
[EventType "swiss"]
[EventCountry "HUN"]
[SourceTitle "playchess.com"]
[Source "ChessBase"]
[SourceQuality "1"]
[TimeControl "40/5400+30:1800+30"]

1. e4 {[%emt 0:00:02]} c6 {[%emt 0:00:05]} 2. d4 {[%emt 0:00:03]} d5 {[%emt 0:00:04]} 3. exd5 {[%emt 0:00:06]} cxd5 {[%emt 0:00:05]} 4. c4 {[%emt 0:00:08]} Nf6 {[%emt 0:00:11]} 5. Nc3 {[%emt 0:00:20]} Nc6 {[%emt 0:00:21]} 6. Bf4 {[%emt 0:00:10]} Bg4 {[%emt 0:01:54]} 7. Be2 {[%emt 0:02:14]} Bxe2 {[%emt 0:01:39]} 8. Ngxe2 {[%emt 0:00:17]} e6 {[%emt 0:00:50]} 9. c5 {[%emt 0:16:41]} Be7 {[%emt 0:03:42]} 10. Qa4 {[%emt 0:04:13]} a5 {[%emt 0:03:26]} 11. O-O {[%emt 0:04:48]} O-O {[%emt 0:01:10]} 12. h3 {[%emt 0:05:30]} Nd7 {[%emt 0:00:41]} 13. Qb5 {[%emt 0:08:47]} Qc8 {[%emt 0:01:51]} 14. Rfe1 {[%emt 0:05:05]} e5 {[%emt 0:02:37]} 15. Nxd5 {[%emt 0:13:30]} Re8 {[%emt 0:03:35]} 16. Nxe7+ {[%emt 0:09:10]} Rxe7 {[%emt 0:00:17]} 17. dxe5 {[%emt 0:02:50]} Ndxe5 {[%emt 0:02:29]} 18. Bxe5 {[%emt 0:11:12]} Nxe5 {[%emt 0:01:46]} 19. Nc3 {[%emt 0:02:20]} Qe8 {[%emt 0:01:50]} 20. Qxe8+ {[%emt 0:04:08]} Raxe8 {[%emt 0:00:10]} 21. Kf1 {[%emt 0:01:34]} f6 {[%emt 0:02:16]} 22. Nd5 {[%emt 0:03:17]} Rd7 {[%emt 0:00:09]} 23. Nb6 {[%emt 0:02:51]} Rd4 {[%emt 0:00:15]} 24. Re2 {[%emt 0:01:58]} Red8 {[%emt 0:00:16]} 25. g3 {[%emt 0:00:40]} Rd2 {[%emt 0:01:10]} 26. Rae1 {[%emt 0:00:27]} Kf8 {[%emt 0:06:35]} 1/2-1/2

[Event "HUN-ch U8-U18 2019"]
[Site "Balatonlelle"]
[Date "2019.06.26"]
[Round "8.15"]
[White "Barsi, Botond"]
[Black "Petervari, Szabolcs"]
[Result "1-0"]
[ECO "D02"]
[WhiteElo "1850"]
[BlackElo "1816"]
[Annotator "NA RC"]
[PlyCount "89"]
[EventDate "2019.06.21"]
[EventType "swiss"]
[EventCountry "HUN"]
[SourceTitle "playchess.com"]
[Source "ChessBase"]
[SourceQuality "1"]
[TimeControl "40/5400+30:1800+30"]

1. d4 {[%emt 0:00:04]} Nf6 {[%emt 0:00:08]} 2. Nf3 {[%emt 0:00:06]} d5 {[%emt 0:00:07]} 3. Bf4 {[%emt 0:00:04]} c5 {[%emt 0:00:05]} 4. c3 {[%emt 0:00:04]} Nc6 {[%emt 0:00:07]} 5. e3 {[%emt 0:00:04]} Qb6 {[%emt 0:00:19]} 6. Qc2 {[%emt 0:00:04]} cxd4 {[%emt 0:00:31]} 7. exd4 {[%emt 0:00:09]} Bf5 {[%emt 0:00:21]} 8. Qb3 {[%emt 0:00:17]} Nd7 {[%emt 0:10:28]} 9. Qxd5 {[%emt 0:21:24]} Qxb2 {[%emt 0:07:17]} 10. Qxf5 {[%emt 0:00:19]} e6 {[%emt 0:01:33]} 11. Qb5 {[%emt 0:02:01]} Qxa1 {[%emt 0:02:38]} 12. Qxb7 {[%emt 0:00:39]} Rd8 {[%emt 0:01:57]} 13. Qb3 {[%emt 0:01:48]} Na5 {[%emt 0:04:02]} 14. Qc2 {[%emt 0:00:35]} e5 {[%emt 0:01:03]} 15. Nxe5 {[%emt 0:00:45]} Rb8 {[%emt 0:00:24]} 16. Bd3 {[%emt 0:00:59]} Bd6 {[%emt 0:19:45]} 17. Nxd7 {[%emt 0:03:16]} Rb2 {[%emt 0:01:44]} 18. Qa4 {[%emt 0:10:02]} Bxf4 {[%emt 0:11:35]} 19. Nf6+ {[%emt 0:00:39]} Ke7 {[%emt 0:00:07]} 20. Nd5+ {[%emt 0:00:37]} Kd6 {[%emt 0:00:51]} 21. Nxf4 {[%emt 0:05:55]} Qxa2 {[%emt 0:12:26]} 22. Qxa2 {[%emt 0:01:34]} Rxa2 {[%emt 0:00:01]} 23. O-O {[%emt 0:00:41]} Rb8 {[%emt 0:02:34]} 24. Bxh7 {[%emt 0:05:38]} g6 {[%emt 0:00:59]} 25. Nxg6 {[%emt 0:00:14]} fxg6 {[%emt 0:00:01]} 26. Bxg6 {[%emt 0:00:09]} Nc6 {[%emt 0:04:55]} 27. f4 {[%emt 0:03:28]} Rg8 {[%emt 0:03:16]} 28. Be4 {[%emt 0:01:24]} Re2 {[%emt 0:02:39]} 29. Bf3 {[%emt 0:00:52]} Rb2 {[%emt 0:00:26]} 30. Na3 {[%emt 0:03:06]} Na5 {[%emt 0:01:20]} 31. f5 {[%emt 0:01:02]} Rb3 {[%emt 0:02:03]} 32. Nb1 {[%emt 0:03:09]} Nc4 {[%emt 0:01:38]} 33. Re1 {[%emt 0:00:36]} Rxb1 {[%emt 0:01:06]} 34. Rxb1 {[%emt 0:01:26]} Nd2 {[%emt 0:00:06]} 35. Rf1 {[%emt 0:05:14]} Nxf1 {[%emt 0:00:07]} 36. Kxf1 {[%emt 0:00:03]} a5 {[%emt 0:00:03]} 37. Bd1 {[%emt 0:01:35]} Rg5 {[%emt 0:00:22]} 38. g4 {[%emt 0:02:19]} Kd5 {[%emt 0:03:08]} 39. h4 {[%emt 0:01:11]} Rg7 {[%emt 0:00:24]} 40. f6 {[%emt 0:00:00]} Rc7 {[%emt 0:00:00]} 41. Bb3+ {[%emt 0:00:56]} Ke4 {[%emt 0:04:05]} 42. f7 {[%emt 0:00:35]} Rc8 {[%emt 0:00:15]} 43. Be6 {[%emt 0:00:11]} Rb8 {[%emt 0:04:24]} 44. g5 {[%emt 0:00:58]} Kf3 {[%emt 0:02:25]} 45. Bd5+ 1-0

[Event "HUN-ch U8-U18 2019"]
[Site "Balatonlelle"]
[Date "2019.06.27"]
[Round "8.17"]
[White "Kovacs, Gabor Etele"]
[Black "Kaloczi, Kristof"]
[Result "1-0"]
[ECO "C04"]
[WhiteElo "2062"]
[BlackElo "2098"]
[Annotator "NA RC"]
[PlyCount "63"]
[EventDate "2019.06.21"]
[EventType "swiss"]
[EventCountry "HUN"]
[SourceTitle "playchess.com"]
[Source "ChessBase"]
[SourceQuality "1"]
[TimeControl "40/5400+30:1800+30"]

1. e4 {[%emt 0:00:03]} e6 {[%emt 0:00:10]} 2. d4 {[%emt 0:00:31]} d5 {[%emt 0:00:06]} 3. Nd2 {[%emt 0:01:30]} Nc6 {[%emt 0:00:08]} 4. Ngf3 {[%emt 0:00:13]} Nf6 {[%emt 0:00:08]} 5. e5 {[%emt 0:00:08]} Nd7 {[%emt 0:00:01]} 6. Nb3 {[%emt 0:00:13]} a5 {[%emt 0:01:15]} 7. a4 {[%emt 0:00:08]} b6 {[%emt 0:01:28]} 8. c3 {[%emt 0:05:46]} f6 {[%emt 0:07:24]} 9. exf6 {[%emt 0:00:37]} Qxf6 {[%emt 0:00:09]} 10. Bg5 {[%emt 0:00:56]} Qf7 {[%emt 0:02:35]} 11. Bd3 {[%emt 0:04:26]} Bd6 {[%emt 0:04:32]} 12. Bh4 {[%emt 0:16:39]} Bf4 {[%emt 0:10:05]} 13. Qe2 {[%emt 0:17:21]} O-O {[%emt 0:09:07]} 14. Ng5 {[%emt 0:07:02]} Bxg5 {[%emt 0:00:50]} 15. Bxg5 {[%emt 0:00:02]} e5 {[%emt 0:14:01]} 16. O-O {[%emt 0:00:38]} e4 {[%emt 0:05:56]} 17. Bb5 {[%emt 0:00:21]} Ncb8 {[%emt 0:07:26]} 18. Qd2 {[%emt 0:06:40]} c6 {[%emt 0:05:32]} 19. Be2 {[%emt 0:00:08]} Nf6 {[%emt 0:01:09]} 20. f3 {[%emt 0:01:45]} Bf5 {[%emt 0:01:51]} 21. Bxf6 {[%emt 0:06:39]} gxf6 {[%emt 0:00:24]} 22. Qf4 {[%emt 0:01:06]} Bg6 {[%emt 0:06:04]} 23. fxe4 {[%emt 0:01:30]} Bxe4 {[%emt 0:01:48]} 24. Nd2 {[%emt 0:00:22]} Bg6 {[%emt 0:05:10]} 25. Rae1 {[%emt 0:10:07]} Ra7 {[%emt 0:06:08]} 26. Bg4 {[%emt 0:05:19]} f5 {[%emt 0:02:23]} 27. Qe5 {[%emt 0:01:33]} Qg7 {[%emt 0:01:51]} 28. Qe6+ {[%emt 0:00:46]} Kh8 {[%emt 0:02:31]} 29. Bxf5 {[%emt 0:00:46]} Rf6 {[%emt 0:02:29]} 30. Qe5 {[%emt 0:03:20]} Rf8 {[%emt 0:00:41]} 31. Bxg6 {[%emt 0:01:11]} Rg8 {[%emt 0:01:06]} 32. Rf7 {[%emt 0:02:30]} 1-0

[Event "HUN-ch U8-U18 2019"]
[Site "Balatonlelle"]
[Date "2019.06.26"]
[Round "8.17"]
[White "Szikszai, Bertalan"]
[Black "Tran, David"]
[Result "0-1"]
[ECO "C54"]
[WhiteElo "1896"]
[BlackElo "2078"]
[Annotator "NA RC"]
[PlyCount "70"]
[EventDate "2019.06.21"]
[EventType "swiss"]
[EventCountry "HUN"]
[SourceTitle "playchess.com"]
[Source "ChessBase"]
[SourceQuality "1"]
[TimeControl "40/5400+30:1800+30"]

1. e4 {[%emt 0:00:03]} e5 {[%emt 0:00:02]} 2. Nf3 {[%emt 0:00:05]} Nc6 {[%emt 0:00:03]} 3. Bc4 {[%emt 0:00:07]} Bc5 {[%emt 0:00:02]} 4. c3 {[%emt 0:00:04]} Nf6 {[%emt 0:00:02]} 5. d4 {[%emt 0:00:07]} exd4 {[%emt 0:00:02]} 6. cxd4 {[%emt 0:00:06]} Bb4+ {[%emt 0:00:05]} 7. Bd2 {[%emt 0:00:09]} Nxe4 {[%emt 0:00:08]} 8. Bxb4 {[%emt 0:01:29]} Nxb4 {[%emt 0:01:45]} 9. Bxf7+ {[%emt 0:04:14]} Kxf7 {[%emt 0:00:13]} 10. Qb3+ {[%emt 0:00:04]} Kf8 {[%emt 0:00:06]} 11. Qxb4+ {[%emt 0:01:19]} Qe7 {[%emt 0:00:02]} 12. Qxe7+ {[%emt 0:03:41]} Kxe7 {[%emt 0:00:03]} 13. Nc3 {[%emt 0:01:12]} Nxc3 {[%emt 0:00:06]} 14. bxc3 {[%emt 0:00:07]} d6 {[%emt 0:00:07]} 15. Nd2 {[%emt 0:08:36]} Be6 {[%emt 0:03:27]} 16. Nf1 {[%emt 0:05:41]} Rae8 {[%emt 0:00:40]} 17. Kd2 {[%emt 0:00:35]} Rhf8 {[%emt 0:01:40]} 18. f3 {[%emt 0:00:23]} Kd7 {[%emt 0:00:55]} 19. Ne3 {[%emt 0:00:22]} Re7 {[%emt 0:00:50]} 20. Rhe1 {[%emt 0:01:48]} Rfe8 {[%emt 0:04:09]} 21. a3 {[%emt 0:03:17]} a5 {[%emt 0:00:56]} 22. f4 {[%emt 0:03:08]} Rf8 {[%emt 0:02:23]} 23. Rf1 {[%emt 0:01:40]} Ref7 {[%emt 0:00:50]} 24. g3 {[%emt 0:04:20]} h6 {[%emt 0:02:12]} 25. h4 {[%emt 0:08:03]} h5 {[%emt 0:03:35]} 26. Rab1 {[%emt 0:03:31]} b6 {[%emt 0:00:38]} 27. Rb5 {[%emt 0:04:16]} g6 {[%emt 0:01:18]} 28. c4 {[%emt 0:16:21]} Bf5 {[%emt 0:11:50]} 29. Rc1 {[%emt 0:03:53]} Kc6 {[%emt 0:04:22]} 30. Rb3 {[%emt 0:10:01]} Re8 {[%emt 0:04:39]} 31. Rbc3 {[%emt 0:02:13]} Rfe7 {[%emt 0:01:45]} 32. Rb3 {[%emt 0:11:02]} a4 {[%emt 0:02:24]} 33. Rbc3 {[%emt 0:02:25]} Re4 {[%emt 0:00:48]} 34. Nc2 {[%emt 0:01:23]} Re2+ {[%emt 0:01:01]} 35. Kd1 {[%emt 0:00:07]} Bg4 {[%emt 0:00:10]} 0-1

[Event "HUN-ch U8-U18 2019"]
[Site "Balatonlelle"]
[Date "2019.06.26"]
[Round "8.18"]
[White "Palczert, Matyas"]
[Black "Magold, Filip"]
[Result "1-0"]
[ECO "B90"]
[WhiteElo "2007"]
[BlackElo "1906"]
[Annotator "NA RC"]
[PlyCount "57"]
[EventDate "2019.06.21"]
[EventType "swiss"]
[EventCountry "HUN"]
[SourceTitle "playchess.com"]
[Source "ChessBase"]
[SourceQuality "1"]
[TimeControl "40/5400+30:1800+30"]

1. e4 {[%emt 0:00:14]} c5 {[%emt 0:00:03]} 2. Nf3 {[%emt 0:00:06]} d6 {[%emt 0:00:06]} 3. d4 {[%emt 0:00:31]} cxd4 {[%emt 0:00:31]} 4. Nxd4 {[%emt 0:00:05]} Nf6 {[%emt 0:00:06]} 5. Nc3 {[%emt 0:00:07]} a6 {[%emt 0:00:07]} 6. Nb3 {[%emt 0:00:22]} Nbd7 {[%emt 0:00:36]} 7. g4 {[%emt 0:07:08]} h6 {[%emt 0:01:24]} 8. Bg2 {[%emt 0:04:29]} Ne5 {[%emt 0:08:00]} 9. h3 {[%emt 0:01:11]} Rb8 {[%emt 0:04:28]} 10. f4 {[%emt 0:06:42]} Ng6 {[%emt 0:07:17]} 11. e5 {[%emt 0:05:28]} Nd7 {[%emt 0:10:26]} 12. e6 {[%emt 0:12:52]} fxe6 {[%emt 0:00:25]} 13. O-O {[%emt 0:00:50]} Nf6 {[%emt 0:08:25]} 14. Qe1 {[%emt 0:10:15]} Qc7 {[%emt 0:15:30]} 15. g5 {[%emt 0:05:03]} hxg5 {[%emt 0:01:59]} 16. fxg5 {[%emt 0:00:07]} Nh5 {[%emt 0:00:31]} 17. Qf2 {[%emt 0:06:29]} Ne5 {[%emt 0:00:46]} 18. Be3 {[%emt 0:00:52]} g6 {[%emt 0:04:57]} 19. Rad1 {[%emt 0:04:47]} Bg7 {[%emt 0:01:45]} 20. Bb6 {[%emt 0:02:08]} Qc4 {[%emt 0:09:25]} 21. Rd4 {[%emt 0:00:37]} Rf8 {[%emt 0:00:38]} 22. Rxc4 {[%emt 0:00:24]} Nxc4 {[%emt 0:03:05]} 23. Qe1 {[%emt 0:00:45]} Nxb6 {[%emt 0:00:27]} 24. Rxf8+ {[%emt 0:00:56]} Bxf8 {[%emt 0:00:06]} 25. Be4 {[%emt 0:00:43]} Nf4 {[%emt 0:00:13]} 26. Qe3 {[%emt 0:02:09]} Nbd5 {[%emt 0:00:22]} 27. Bxd5 {[%emt 0:00:17]} Nxd5 {[%emt 0:00:05]} 28. Nxd5 {[%emt 0:00:09]} exd5 {[%emt 0:00:04]} 29. Qa7 {[%emt 0:00:12]} 1-0

[Event "HUN-ch U8-U18 2019"]
[Site "Balatonlelle"]
[Date "2019.06.27"]
[Round "8.20"]
[White "Hatala, Csaba Laszlo"]
[Black "Pesti, Mate"]
[Result "0-1"]
[ECO "B35"]
[WhiteElo "1958"]
[BlackElo "1925"]
[Annotator "NA RC"]
[PlyCount "72"]
[EventDate "2019.06.21"]
[EventType "swiss"]
[EventCountry "HUN"]
[SourceTitle "playchess.com"]
[Source "ChessBase"]
[SourceQuality "1"]
[TimeControl "40/5400+30:1800+30"]

1. e4 {[%emt 0:00:03]} c5 {[%emt 0:00:07]} 2. Nf3 {[%emt 0:00:07]} Nc6 {[%emt 0:00:05]} 3. d4 {[%emt 0:00:07]} cxd4 {[%emt 0:00:04]} 4. Nxd4 {[%emt 0:00:05]} g6 {[%emt 0:00:12]} 5. Nc3 {[%emt 0:00:08]} Bg7 {[%emt 0:00:05]} 6. Be3 {[%emt 0:00:08]} Nf6 {[%emt 0:00:06]} 7. Bc4 {[%emt 0:00:12]} Qa5 {[%emt 0:00:35]} 8. O-O {[%emt 0:00:50]} O-O {[%emt 0:03:18]} 9. Bb3 {[%emt 0:00:14]} d6 {[%emt 0:01:09]} 10. h3 {[%emt 0:00:57]} Bd7 {[%emt 0:01:07]} 11. f4 {[%emt 0:03:05]} Rac8 {[%emt 0:11:52]} 12. Nf3 {[%emt 0:07:59]} a6 {[%emt 0:06:45]} 13. e5 {[%emt 0:07:03]} dxe5 {[%emt 0:02:28]} 14. fxe5 {[%emt 0:00:08]} Nxe5 {[%emt 0:00:31]} 15. Nxe5 {[%emt 0:00:22]} Qxe5 {[%emt 0:00:41]} 16. Bd4 {[%emt 0:00:29]} Qc7 {[%emt 0:02:20]} 17. Qe1 {[%emt 0:23:15]} Ng4 {[%emt 0:04:12]} 18. hxg4 {[%emt 0:05:23]} Bxd4+ {[%emt 0:00:26]} 19. Kh1 {[%emt 0:00:14]} Bxc3 {[%emt 0:09:28]} 20. Qxe7 {[%emt 0:14:38]} Bxg4 {[%emt 0:04:10]} 21. Qxc7 {[%emt 0:07:25]} Rxc7 {[%emt 0:01:28]} 22. bxc3 {[%emt 0:00:07]} Rxc3 {[%emt 0:01:00]} 23. Rf4 {[%emt 0:02:16]} Be6 {[%emt 0:02:43]} 24. Rb4 {[%emt 0:01:18]} Bxb3 {[%emt 0:02:26]} 25. axb3 {[%emt 0:00:29]} Rc7 {[%emt 0:06:06]} 26. c4 {[%emt 0:00:55]} Re8 {[%emt 0:02:49]} 27. Rd1 {[%emt 0:03:36]} Re2 {[%emt 0:14:07]} 28. Rb6 {[%emt 0:07:57]} Kg7 {[%emt 0:04:33]} 29. Rdd6 {[%emt 0:05:06]} Rb2 {[%emt 0:03:48]} 30. Rd3 {[%emt 0:01:36]} Rxc4 {[%emt 0:03:49]} 31. Rxb7 Rf4 {[%emt 0:02:17]} 32. Rdd7 {[%emt 0:01:46]} Rff2 {[%emt 0:03:03]} 33. Rdc7 {[%emt 0:00:36]} h5 {[%emt 0:00:48]} 34. Rd7 {[%emt 0:00:56]} h4 {[%emt 0:00:36]} 35. Rdc7 {[%emt 0:00:57]} h3 {[%emt 0:00:21]} 36. Kh2 {[%emt 0:01:01]} hxg2 {[%emt 0:00:13]} 0-1

[Event "HUN-ch U8-U18 2019"]
[Site "Balatonlelle"]
[Date "2019.06.26"]
[Round "8.20"]
[White "Szegedy, Matyas"]
[Black "Turcsanyi, Vince Gergo"]
[Result "0-1"]
[ECO "C47"]
[WhiteElo "1806"]
[BlackElo "1816"]
[Annotator "NA RC"]
[PlyCount "90"]
[EventDate "2019.06.21"]
[EventType "swiss"]
[EventCountry "HUN"]
[SourceTitle "playchess.com"]
[Source "ChessBase"]
[SourceQuality "1"]
[TimeControl "40/5400+30:1800+30"]

1. e4 {[%emt 0:00:01]} e5 {[%emt 0:00:05]} 2. Nc3 {[%emt 0:00:06]} Nf6 {[%emt 0:00:05]} 3. Nf3 {[%emt 0:00:07]} Nc6 {[%emt 0:00:05]} 4. a3 {[%emt 0:00:05]} g6 {[%emt 0:00:08]} 5. Nxe5 {[%emt 0:02:57]} Nxe5 {[%emt 0:00:09]} 6. d4 {[%emt 0:00:06]} Nc6 {[%emt 0:00:05]} 7. d5 {[%emt 0:00:04]} Bg7 {[%emt 0:00:04]} 8. dxc6 {[%emt 0:00:33]} bxc6 {[%emt 0:00:11]} 9. Bc4 {[%emt 0:02:50]} O-O {[%emt 0:02:27]} 10. O-O {[%emt 0:02:48]} Re8 {[%emt 0:04:37]} 11. Qf3 {[%emt 0:22:32]} d6 {[%emt 0:04:38]} 12. h3 {[%emt 0:05:14]} Qe7 {[%emt 0:12:28]} 13. Bg5 {[%emt 0:13:31]} h6 {[%emt 0:07:06]} 14. Bxf6 {[%emt 0:03:37]} Bxf6 {[%emt 0:02:31]} 15. e5 {[%emt 0:10:59]} Bxe5 {[%emt 0:03:47]} 16. Qxc6 {[%emt 0:01:12]} Be6 {[%emt 0:23:41]} 17. Bxe6 {[%emt 0:06:19]} fxe6 {[%emt 0:02:29]} 18. f4 {[%emt 0:08:31]} Bd4+ {[%emt 0:04:16]} 19. Kh1 {[%emt 0:00:12]} Rab8 {[%emt 0:05:14]} 20. Nb5 {[%emt 0:02:53]} Rb6 {[%emt 0:06:48]} 21. Qc4 {[%emt 0:03:06]} Bxb2 {[%emt 0:02:51]} 22. Rae1 {[%emt 0:04:33]} d5 {[%emt 0:04:39]} 23. Qd3 {[%emt 0:00:57]} Bg7 {[%emt 0:02:42]} 24. Nd4 {[%emt 0:02:13]} c5 {[%emt 0:01:13]} 25. Nf3 {[%emt 0:00:38]} Kh7 {[%emt 0:02:53]} 26. Ne5 {[%emt 0:00:51]} Bxe5 {[%emt 0:01:26]} 27. fxe5 {[%emt 0:00:19]} Rf8 {[%emt 0:00:53]} 28. Rxf8 {[%emt 0:00:24]} Qxf8 {[%emt 0:00:01]} 29. Rf1 {[%emt 0:00:08]} Qg7 {[%emt 0:02:46]} 30. Rf6 {[%emt 0:00:12]} c4 {[%emt 0:00:21]} 31. Qf3 {[%emt 0:01:42]} Kg8 {[%emt 0:00:56]} 32. Qg4 {[%emt 0:00:45]} g5 {[%emt 0:00:23]} 33. Rxe6 {[%emt 0:01:16]} Rxe6 {[%emt 0:00:10]} 34. Qxe6+ {[%emt 0:00:05]} Qf7 {[%emt 0:00:06]} 35. Qg4 {[%emt 0:00:36]} Qf1+ {[%emt 0:00:54]} 36. Kh2 {[%emt 0:00:04]} Qf4+ {[%emt 0:00:47]} 37. Qxf4 {[%emt 0:00:44]} gxf4 {[%emt 0:00:01]} 38. g3 d4 39. gxf4 {[%emt 0:00:00]} d3 {[%emt 0:00:00]} 40. cxd3 {[%emt 0:00:00]} cxd3 {[%emt 0:00:00]} 41. Kg3 {[%emt 0:09:01]} d2 {[%emt 0:02:24]} 42. f5 {[%emt 0:01:43]} d1=Q {[%emt 0:00:11]} 43. Kf4 {[%emt 0:00:06]} Qd4+ {[%emt 0:00:15]} 44. Kf3 {[%emt 0:02:51]} Qxe5 {[%emt 0:00:08]} 45. Kg4 {[%emt 0:00:06]} Qe4+ {[%emt 0:00:23]} 0-1

[Event "HUN-ch U8-U18 2019"]
[Site "Balatonlelle"]
[Date "2019.06.27"]
[Round "8.21"]
[White "Erseki, Tamara"]
[Black "Kovacs, Judit"]
[Result "1/2-1/2"]
[ECO "B43"]
[WhiteElo "1999"]
[BlackElo "2025"]
[Annotator "NA RC"]
[PlyCount "33"]
[EventDate "2019.06.21"]
[EventType "swiss"]
[EventCountry "HUN"]
[SourceTitle "playchess.com"]
[Source "ChessBase"]
[SourceQuality "1"]
[TimeControl "40/5400+30:1800+30"]

1. e4 {[%emt 0:00:03]} c5 {[%emt 0:00:08]} 2. Nf3 {[%emt 0:00:08]} e6 {[%emt 0:00:10]} 3. d4 {[%emt 0:00:49]} cxd4 {[%emt 0:00:10]} 4. Nxd4 {[%emt 0:00:04]} a6 {[%emt 0:00:36]} 5. Nc3 {[%emt 0:00:51]} Qc7 {[%emt 0:00:50]} 6. Bd3 {[%emt 0:01:32]} Nf6 {[%emt 0:01:25]} 7. O-O {[%emt 0:03:17]} Bc5 {[%emt 0:04:15]} 8. Nb3 {[%emt 0:07:10]} Be7 {[%emt 0:02:35]} 9. Qe2 {[%emt 0:05:32]} d6 {[%emt 0:03:17]} 10. Kh1 {[%emt 0:02:11]} Nbd7 {[%emt 0:02:39]} 11. f4 {[%emt 0:03:58]} b5 {[%emt 0:03:29]} 12. a3 {[%emt 0:07:26]} Bb7 {[%emt 0:02:50]} 13. Bd2 {[%emt 0:03:40]} O-O {[%emt 0:04:11]} 14. Rae1 {[%emt 0:04:18]} e5 {[%emt 0:10:31]} 15. fxe5 {[%emt 0:04:45]} dxe5 {[%emt 0:00:34]} 16. Qf3 {[%emt 0:10:19]} Rac8 {[%emt 0:06:56]} 17. Ne2 {[%emt 0:01:15]} 1/2-1/2